fUST/lending_fUST_20250127
["ID","MTS","AMOUNT","RATE_DAILY","PERIOD"]
[350610672,1737993047533,-500.0,0.00020164,2]
[350610674,1737993047543,-151.0,0.000202,3]
[350610676,1737993047553,-882.22,0.00020277,2]
[350610678,1737993047562,-1419.26,0.00020277,2]
[350610680,1737993047572,-629.38,0.00020277,2]
[350610682,1737993047582,-594.91,0.00020277,2]
[350610684,1737993047593,-500.0,0.00020277,2]
[350610686,1737993047604,-500.0,0.00020277,2]
[350610689,1737993047615,-431.04,0.00020277,2]
[350610691,1737993047625,-906.92,0.00020277,2]
[350610693,1737993047634,-500.0,0.00020277,2]
[350610694,1737993047644,-500.0,0.00020277,2]
[350610696,1737993047654,-606.54,0.00020277,2]
[350610699,1737993047664,-539.6,0.00020277,2]
[350610701,1737993047674,-500.0,0.00020277,2]
[350610703,1737993047687,-500.0,0.00020277,2]
[350610705,1737993047698,-608.98,0.00020277,2]
[350610707,1737993047707,-775.91,0.00020277,2]
[350610709,1737993047716,-500.0,0.00020277,2]
[350610711,1737993047725,-691.01,0.00020277,2]
[350610713,1737993047735,-500.0,0.00020277,2]
[350610715,1737993047746,-500.0,0.00020277,2]
[350610717,1737993047756,-179.12,0.00020277,2]
[350610719,1737993047766,-500.0,0.00020278,2]
[350610720,1737993047776,-194.24,0.00020278,2]
[350610723,1737993047787,-500.0,0.00020278,2]
[350610725,1737993047797,-791.18,0.00020278,2]
[350610727,1737993047807,-500.0,0.00020278,2]
[350610729,1737993047816,-3298.14,0.00020278,2]
[350610731,1737993047826,-500.0,0.00020278,2]
[350610733,1737993047836,-614.47,0.00020278,2]
[350610735,1737993047847,-500.0,0.00020278,2]
[350610737,1737993047856,-11389.3,0.00020278,2]
[350610739,1737993047866,-666.28,0.00020278,2]
[350610741,1737993047875,-3490.35,0.00020278,2]
[350610743,1737993047885,-500.0,0.00020278,2]
[350610745,1737993047895,-500.0,0.00020278,2]
[350610747,1737993047905,-534.824888,0.00020278,2]
[350610749,1737993047914,-500.0,0.00020278,2]
[350610751,1737993047924,-534.824888,0.00020278,2]
[350610753,1737993047933,-591.9,0.00020278,2]
[350610755,1737993047943,-500.0,0.00020279,2]
[350610757,1737993047952,-500.0,0.00020279,2]
[350610759,1737993047962,-1500.0,0.0002028,2]
[350610761,1737993047971,-337.29,0.0002028,2]
[350610763,1737993047981,-500.0,0.0002028,2]
[350610765,1737993047992,-500.0,0.0002028,2]
[350610767,1737993048002,-500.0,0.0002028,2]
[350610769,1737993048011,-577.43,0.0002028,2]
[350610771,1737993048021,-500.0,0.0002028,2]
[350610773,1737993048031,-151.0,0.000203,2]
[350610775,1737993048041,-151.0,0.000204,4]
[350610777,1737993048052,-882.22,0.00020414,2]
[350610779,1737993048061,-1419.26,0.00020414,2]
[350610781,1737993048071,-629.38,0.00020414,2]
[350610783,1737993048082,-594.91,0.00020414,2]
[350610785,1737993048092,-500.0,0.00020414,2]
[350610787,1737993048102,-500.0,0.00020414,2]
[350610789,1737993048112,-906.92,0.00020414,2]
[350610791,1737993048122,-500.0,0.00020414,2]
[350610793,1737993048132,-367.36,0.00020414,2]
[350610795,1737993048143,-606.54,0.00020414,2]
[350610796,1737993048153,-539.6,0.00020414,2]
[350610798,1737993048163,-272.71263423,0.00020414,2]
[350610801,1737993048173,-500.0,0.00020414,2]
[350610803,1737993048183,-608.98,0.00020414,2]
[350610804,1737993048193,-775.91,0.00020414,2]
[350610807,1737993048204,-500.0,0.00020414,2]
[350610809,1737993048214,-691.01,0.00020414,2]
[350610811,1737993048224,-500.0,0.00020414,2]
[350610813,1737993048234,-500.0,0.00020414,2]
[350610815,1737993048246,-500.0,0.00020415,2]
[350610817,1737993048257,-500.0,0.00020415,2]
[350610819,1737993048267,-791.18,0.00020415,2]
[350610821,1737993048277,-500.0,0.00020415,2]
[350610823,1737993048286,-3298.14,0.00020415,2]
[350610825,1737993048296,-500.0,0.00020415,2]
[350610827,1737993048305,-614.47,0.00020415,2]
[350610829,1737993048314,-500.0,0.00020415,2]
[350610831,1737993048324,-11389.3,0.00020415,2]
[350610833,1737993048335,-666.28,0.00020415,2]
[350610835,1737993048344,-3490.35,0.00020415,2]
[350610837,1737993048354,-500.0,0.00020415,2]
[350610839,1737993048364,-500.0,0.00020415,2]
[350610841,1737993048374,-170.32,0.00020415,2]
[350610843,1737993048384,-591.9,0.00020415,2]
[350610845,1737993048394,-500.0,0.00020416,2]
[350610847,1737993048403,-219.16,0.00020416,2]
[350610849,1737993048413,-1500.0,0.00020417,2]
[350610851,1737993048423,-500.0,0.00020417,2]
[350610853,1737993048433,-500.0,0.00020417,2]
[350610855,1737993048443,-296.24,0.00020417,2]
[350610857,1737993048453,-577.43,0.00020417,2]
[350610859,1737993048462,-500.0,0.00020417,2]
[350610861,1737993048472,-882.22,0.00020551,2]
[350610863,1737993048483,-1419.26,0.00020551,2]
[350610865,1737993048495,-629.38,0.00020551,2]
[350610867,1737993048505,-594.91,0.00020551,2]
[350610869,1737993048514,-500.0,0.00020551,2]
[350610871,1737993048524,-211.16000001,0.00020551,2]
[350610873,1737993048534,-906.92,0.00020551,2]
[350610875,1737993048544,-500.0,0.00020551,2]
[350610877,1737993048555,-606.54,0.00020551,2]
[350610879,1737993048565,-539.6,0.00020551,2]
[350610881,1737993048575,-500.0,0.00020551,2]
[350610883,1737993048584,-608.98,0.00020551,2]
[350610885,1737993048594,-775.91,0.00020551,2]
[350610887,1737993048605,-500.0,0.00020551,2]
[350610889,1737993048618,-691.01,0.00020551,2]
[350610892,1737993048627,-500.0,0.00020551,2]
[350610894,1737993048637,-500.0,0.00020551,2]
[350610902,1737993048714,-565.76,0.00020552,2]
[350610904,1737993048725,-251.92,0.00020552,2]
[350610906,1737993048741,-791.18,0.00020552,2]
[350610908,1737993048751,-500.0,0.00020552,2]
[350610910,1737993048761,-3298.14,0.00020552,2]
[350610912,1737993048770,-500.0,0.00020552,2]
[350610914,1737993048780,-614.47,0.00020552,2]
[350610916,1737993048789,-500.0,0.00020552,2]
[350610918,1737993048800,-11389.3,0.00020552,2]
[350610921,1737993048809,-666.28,0.00020552,2]
[350610922,1737993048818,-3490.35,0.00020552,2]
[350610925,1737993048829,-500.0,0.00020552,2]
[350610927,1737993048837,-315.36,0.00020552,2]
[350610929,1737993048847,-591.9,0.00020552,2]
[350610931,1737993048857,-614.32,0.00020553,2]
[350610933,1737993048867,-1500.0,0.00020554,2]
[350610935,1737993048876,-500.0,0.00020554,2]
[350610937,1737993048886,-333.04,0.00020554,2]
[350610938,1737993048896,-577.43,0.00020554,2]
[350610940,1737993048905,-599.76,0.00020554,2]
[350610943,1737993048915,-151.52159448,0.00020655,2]
[350610945,1737993048925,-882.22,0.00020688,2]
[350610947,1737993048934,-1419.26,0.00020688,2]
[350610949,1737993048945,-629.38,0.00020688,2]
[350610951,1737993048954,-594.91,0.00020688,2]
[350610953,1737993048964,-500.0,0.00020688,2]
[350610955,1737993048974,-906.92,0.00020688,2]
[350610957,1737993048984,-500.0,0.00020688,2]
[350610959,1737993048994,-606.54,0.00020688,2]
[350610961,1737993049004,-539.6,0.00020688,2]
[350610963,1737993049016,-500.0,0.00020688,2]
[350610965,1737993049027,-608.98,0.00020688,2]
[350610967,1737993049038,-775.91,0.00020688,2]
[350610969,1737993049049,-265.58940886,0.00020688,2]
[350610971,1737993049060,-691.01,0.00020688,2]
[350610974,1737993049070,-500.0,0.00020688,2]
[350610976,1737993049080,-500.0,0.00020688,2]
[350610978,1737993049090,-791.18,0.00020689,2]
[350610980,1737993049100,-500.0,0.00020689,2]
[350610981,1737993049109,-3298.14,0.00020689,2]
[350610983,1737993049119,-500.0,0.00020689,2]
[350610986,1737993049129,-614.47,0.00020689,2]
[350610988,1737993049139,-463.52,0.00020689,2]
[350610990,1737993049149,-11389.3,0.00020689,2]
[350610992,1737993049158,-666.28,0.00020689,2]
[350610994,1737993049168,-3490.35,0.00020689,2]
[350610996,1737993049177,-500.0,0.00020689,2]
[350610998,1737993049188,-591.9,0.00020689,2]
[350611000,1737993049197,-1500.0,0.00020691,2]
[350611002,1737993049207,-500.0,0.00020691,2]
[350611004,1737993049218,-577.43,0.00020691,2]
[350611006,1737993049227,-882.22,0.00020825,2]
[350611008,1737993049237,-1419.26,0.00020825,2]
[350611010,1737993049248,-629.38,0.00020825,2]
[350611012,1737993049259,-594.91,0.00020825,2]
[350611014,1737993049269,-500.0,0.00020825,2]
[350611016,1737993049279,-906.92,0.00020825,2]
[350611018,1737993049289,-500.0,0.00020825,2]
[350611020,1737993049299,-606.54,0.00020825,2]
[350611022,1737993049309,-539.6,0.00020825,2]
[350611024,1737993049320,-552.64,0.00020825,2]
[350611026,1737993049330,-608.98,0.00020825,2]
[350611028,1737993049341,-775.91,0.00020825,2]
[350611030,1737993049351,-691.01,0.00020825,2]
[350611032,1737993049362,-500.0,0.00020825,2]
[350611034,1737993049372,-500.0,0.00020825,2]
[350611036,1737993049381,-791.18,0.00020826,2]
[350611038,1737993049391,-500.0,0.00020826,2]
[350611040,1737993049401,-3298.14,0.00020826,2]
[350611042,1737993049411,-500.0,0.00020826,2]
[350611044,1737993049420,-614.47,0.00020826,2]
[350611046,1737993049430,-11389.3,0.00020826,2]
[350611048,1737993049439,-666.28,0.00020826,2]
[350611050,1737993049450,-3490.35,0.00020826,2]
[350611053,1737993049460,-500.0,0.00020826,2]
[350611055,1737993049470,-591.9,0.00020826,2]
[350611056,1737993049480,-1500.0,0.00020828,2]
[350611059,1737993049490,-500.0,0.00020828,2]
[350611060,1737993049500,-577.43,0.00020828,2]
[350611061,1737993049509,-211.90289788,0.000209,2]
[350611062,1737993049519,-882.22,0.00020962,2]
[350611063,1737993049528,-1419.26,0.00020962,2]
[350611064,1737993049538,-629.38,0.00020962,2]
[350611065,1737993049548,-594.91,0.00020962,2]
[350611066,1737993049557,-500.0,0.00020962,2]
[350611067,1737993049567,-906.92,0.00020962,2]
[350611068,1737993049577,-211.36,0.00020962,2]
[350611069,1737993049586,-606.54,0.00020962,2]
[350611070,1737993049595,-539.6,0.00020962,2]
[350611071,1737993049609,-608.98,0.00020962,2]
[350611072,1737993049619,-775.91,0.00020962,2]
[350611073,1737993049628,-691.01,0.00020962,2]
[350611074,1737993049638,-500.0,0.00020962,2]
[350611076,1737993049649,-500.0,0.00020962,2]
[350611078,1737993049659,-151.0,0.00020963,2]
[350611080,1737993049669,-791.18,0.00020963,2]
[350611082,1737993049679,-500.0,0.00020963,2]
[350611084,1737993049690,-3298.14,0.00020963,2]
[350611086,1737993049699,-500.0,0.00020963,2]
[350611088,1737993049708,-614.47,0.00020963,2]
[350611090,1737993049719,-11389.3,0.00020963,2]
[350611092,1737993049728,-666.28,0.00020963,2]
[350611094,1737993049737,-3490.35,0.00020963,2]
[350611096,1737993049751,-500.0,0.00020963,2]
[350611098,1737993049761,-591.9,0.00020963,2]
[350611100,1737993049771,-1466.13355038,0.00020965,2]
[350611102,1737993049782,-500.0,0.00020965,2]
[350611104,1737993049791,-577.43,0.00020965,2]
[350611106,1737993049801,-4313.92,0.00021,2]
[350611108,1737993049810,-882.22,0.00021099,2]
[350611110,1737993049820,-1419.26,0.00021099,2]
[350611112,1737993049830,-629.38,0.00021099,2]
[350611114,1737993049840,-594.91,0.00021099,2]
[350611116,1737993049849,-346.8,0.00021099,2]
[350611118,1737993049859,-906.92,0.00021099,2]
[350611120,1737993049868,-606.54,0.00021099,2]
[350611122,1737993049877,-539.6,0.00021099,2]
[350611124,1737993049887,-608.98,0.00021099,2]
[350611126,1737993049897,-775.91,0.00021099,2]
[350611129,1737993049906,-691.01,0.00021099,2]
[350611131,1737993049915,-500.0,0.00021099,2]
[350611133,1737993049925,-300.8,0.00021099,2]
[350611135,1737993049935,-151.0,0.000211,4]
[350611137,1737993049945,-791.18,0.000211,2]
[350611139,1737993049955,-500.0,0.000211,2]
[350611141,1737993049965,-3298.14,0.000211,2]
[350611143,1737993049975,-266.72,0.000211,2]
[350611145,1737993049984,-614.47,0.000211,2]
[350611147,1737993049997,-11389.3,0.000211,2]
[350611149,1737993050007,-666.28,0.000211,2]
[350611157,1737993050079,-3490.35,0.000211,2]
[350611159,1737993050091,-155.68,0.000211,2]
[350611161,1737993050101,-534.824888,0.000211,2]
[350611163,1737993050111,-534.824888,0.000211,2]
[350611165,1737993050121,-591.9,0.000211,2]
[350611167,1737993050130,-160.1501,0.000211,2]
[350611169,1737993050141,-500.0,0.00021102,2]
[350611171,1737993050150,-577.43,0.00021102,2]
[350611173,1737993050160,-882.22,0.00021236,2]
[350611175,1737993050169,-1419.26,0.00021236,2]
[350611177,1737993050179,-629.38,0.00021236,2]
[350611179,1737993050188,-594.91,0.00021236,2]
[350611181,1737993050198,-906.92,0.00021236,2]
[350611183,1737993050208,-606.54,0.00021236,2]
[350611185,1737993050217,-539.6,0.00021236,2]
[350611187,1737993050227,-608.98,0.00021236,2]
[350611189,1737993050237,-775.91,0.00021236,2]
[350611191,1737993050249,-691.01,0.00021236,2]
[350611193,1737993050259,-500.0,0.00021236,2]
[350611195,1737993050268,-791.18,0.00021237,2]
[350611197,1737993050278,-448.64,0.00021237,2]
[350611199,1737993050288,-3298.14,0.00021237,2]
[350611201,1737993050298,-614.47,0.00021237,2]
[350611203,1737993050308,-11389.3,0.00021237,2]
[350611205,1737993050317,-666.28,0.00021237,2]
[350611207,1737993050327,-3490.35,0.00021237,2]
[350611209,1737993050337,-591.9,0.00021237,2]
[350611211,1737993050347,-500.0,0.00021239,2]
[350611213,1737993050359,-577.43,0.00021239,2]
[350611215,1737993050368,-151.52159448,0.0002127,2]
[350611217,1737993050378,-155.603611,0.0002135,4]
[350611220,1737993050388,-882.22,0.00021373,2]
[350611222,1737993050397,-1419.26,0.00021373,2]
[350611224,1737993050407,-629.38,0.00021373,2]
[350611225,1737993050416,-594.91,0.00021373,2]
[350611227,1737993050426,-906.92,0.00021373,2]
[350611230,1737993050436,-606.54,0.00021373,2]
[350611232,1737993050445,-539.6,0.00021373,2]
[350611233,1737993050455,-608.98,0.00021373,2]
[350611235,1737993050464,-775.91,0.00021373,2]
[350611237,1737993050474,-691.01,0.00021373,2]
[350611240,1737993050484,-500.0,0.00021373,2]
[350611242,1737993050496,-791.18,0.00021374,2]
[350611244,1737993050506,-3298.14,0.00021374,2]
[350611246,1737993050515,-614.47,0.00021374,2]
[350611248,1737993050525,-11389.3,0.00021374,2]
[350611250,1737993050534,-666.28,0.00021374,2]
[350611252,1737993050543,-3490.35,0.00021374,2]
[350611254,1737993050553,-591.9,0.00021374,2]
[350611256,1737993050563,-500.0,0.00021376,2]
[350611258,1737993050572,-577.43,0.00021376,2]
[350611260,1737993050581,-245.043,0.0002145,2]
[350611262,1737993050591,-151.0,0.000215,3]
[350611264,1737993050600,-2172.35,0.000215,2]
[350611266,1737993050613,-882.22,0.0002151,2]
[350611268,1737993050623,-1419.26,0.0002151,2]
[350611270,1737993050632,-629.38,0.0002151,2]
[350611272,1737993050641,-594.91,0.0002151,2]
[350611274,1737993050652,-906.92,0.0002151,2]
[350611276,1737993050662,-606.54,0.0002151,2]
[350611278,1737993050671,-539.6,0.0002151,2]
[350611280,1737993050682,-608.98,0.0002151,2]
[350611282,1737993050692,-775.91,0.0002151,2]
[350611284,1737993050702,-691.01,0.0002151,2]
[350611286,1737993050712,-500.0,0.0002151,2]
[350611288,1737993050721,-791.18,0.00021511,2]
[350611290,1737993050731,-3298.14,0.00021511,2]
[350611292,1737993050742,-614.47,0.00021511,2]
[350611294,1737993050752,-11389.3,0.00021511,2]
[350611296,1737993050761,-666.28,0.00021511,2]
[350611298,1737993050771,-3490.35,0.00021511,2]
[350611300,1737993050781,-591.9,0.00021511,2]
[350611301,1737993050791,-500.0,0.00021513,2]
[350611302,1737993050801,-173.45222,0.00021513,2]
[350611303,1737993050810,-151.0,0.00021513,2]
[350611304,1737993050819,-151.0,0.00021513,2]
[350611305,1737993050829,-577.43,0.00021513,2]
[350611307,1737993050838,-151.0,0.00021513,2]
[350611309,1737993050847,-3000.0,0.00021549,2]
[350611311,1737993050858,-882.22,0.00021647,2]
[350611313,1737993050867,-1419.26,0.00021647,2]
[350611315,1737993050876,-629.38,0.00021647,2]
[350611317,1737993050886,-594.91,0.00021647,2]
[350611319,1737993050896,-906.92,0.00021647,2]
[350611321,1737993050905,-606.54,0.00021647,2]
[350611323,1737993050915,-539.6,0.00021647,2]
[350611325,1737993050924,-608.98,0.00021647,2]
[350611327,1737993050936,-775.91,0.00021647,2]
[350611329,1737993050945,-691.01,0.00021647,2]
[350611331,1737993050955,-556.08,0.00021647,2]
[350611333,1737993050964,-791.18,0.00021648,2]
[350611335,1737993050975,-3298.14,0.00021648,2]
[350611337,1737993050984,-614.47,0.00021648,2]
[350611339,1737993050995,-11389.3,0.00021648,2]
[350611341,1737993051004,-666.28,0.00021648,2]
[350611343,1737993051014,-3490.35,0.00021648,2]
[350611345,1737993051024,-591.9,0.00021648,2]
[350611347,1737993051033,-500.0,0.0002165,2]
[350611349,1737993051042,-577.43,0.0002165,2]
[350611351,1737993051052,-600.0,0.00021682,2]
[350611353,1737993051062,-882.22,0.00021784,2]
[350611355,1737993051071,-1419.26,0.00021784,2]
[350611357,1737993051081,-629.38,0.00021784,2]
[350611359,1737993051090,-594.91,0.00021784,2]
[350611361,1737993051100,-906.92,0.00021784,2]
[350611363,1737993051110,-606.54,0.00021784,2]
[350611365,1737993051119,-539.6,0.00021784,2]
[350611367,1737993051129,-608.98,0.00021784,2]
[350611369,1737993051138,-775.91,0.00021784,2]
[350611371,1737993051148,-691.01,0.00021784,2]
[350611374,1737993051157,-791.18,0.00021785,2]
[350611376,1737993051167,-3298.14,0.00021785,2]
[350611377,1737993051176,-614.47,0.00021785,2]
[350611380,1737993051186,-11389.3,0.00021785,2]
[350611382,1737993051196,-666.28,0.00021785,2]
[350611384,1737993051205,-3490.35,0.00021785,2]
[350611386,1737993051214,-591.9,0.00021785,2]
[350611388,1737993051224,-500.0,0.00021787,2]
[350611390,1737993051233,-577.43,0.00021787,2]
[350611398,1737993051303,-151.0,0.000218,4]
[350611400,1737993051316,-481.22336334,0.00021822,2]
[350611402,1737993051325,-151.52159448,0.00021886,2]
[350611404,1737993051335,-211.90289788,0.000219,3]
[350611406,1737993051344,-481.22336332,0.000219,2]
[350611408,1737993051354,-600.0,0.00021907,2]
[350611410,1737993051363,-500.0,0.00021917,2]
[350611412,1737993051373,-500.0,0.00021917,2]
[350611414,1737993051382,-511.77106659,0.00021917,2]
[350611416,1737993051392,-882.22,0.00021921,2]
[350611418,1737993051401,-1419.26,0.00021921,2]
[350611420,1737993051411,-629.38,0.00021921,2]
[350611422,1737993051421,-594.91,0.00021921,2]
[350611424,1737993051431,-906.92,0.00021921,2]
[350611426,1737993051440,-606.54,0.00021921,2]
[350611428,1737993051450,-539.6,0.00021921,2]
[350611430,1737993051460,-608.98,0.00021921,2]
[350611432,1737993051469,-775.91,0.00021921,2]
[350611434,1737993051478,-691.01,0.00021921,2]
[350611437,1737993051488,-791.18,0.00021922,2]
[350611439,1737993051500,-3298.14,0.00021922,2]
[350611441,1737993051510,-614.47,0.00021922,2]
[350611443,1737993051519,-11389.3,0.00021922,2]
[350611445,1737993051528,-666.28,0.00021922,2]
[350611447,1737993051538,-3490.35,0.00021922,2]
[350611448,1737993051547,-591.9,0.00021922,2]
[350611451,1737993051557,-503.52,0.00021924,2]
[350611453,1737993051567,-577.43,0.00021924,2]
[350611455,1737993051577,-481.22336332,0.00021978,2]
[350611457,1737993051587,-481.22336332,0.00022056,2]
[350611459,1737993051597,-882.28,0.00022058,2]
[350611461,1737993051609,-1419.43,0.00022058,2]
[350611463,1737993051618,-629.58,0.00022058,2]
[350611465,1737993051628,-595.00999998,0.00022058,2]
[350611467,1737993051639,-907.08,0.00022058,2]
[350611469,1737993051649,-606.54,0.00022058,2]
[350611471,1737993051659,-539.63,0.00022058,2]
[350611473,1737993051668,-609.03612406,0.00022058,2]
[350611475,1737993051678,-776.11,0.00022058,2]
[350611476,1737993051690,-691.10912382,0.00022058,2]
[350611478,1737993051700,-791.34,0.00022059,2]
[350611480,1737993051709,-3298.16606139,0.00022059,2]
[350611482,1737993051719,-614.63,0.00022059,2]
[350611484,1737993051729,-11389.3637,0.00022059,2]
[350611486,1737993051739,-666.44,0.00022059,2]
[350611489,1737993051750,-3490.40926205,0.00022059,2]
[350611490,1737993051760,-591.9,0.00022059,2]
[350611493,1737993051769,-577.51,0.00022061,2]
[350611494,1737993051780,-601.10274715,0.00022133,2]
[350611496,1737993051789,-481.22336332,0.00022134,2]
[350611498,1737993051800,-645.25,0.000222,2]
[350611500,1737993051809,-151.0,0.000222,8]
[350611503,1737993051819,-481.22336332,0.00022212,2]
[350611504,1737993051828,-481.22336332,0.0002229,2]
[350611507,1737993051838,-534.824888,0.00022299,7]
[350611508,1737993051847,-534.824888,0.00022299,7]
[350611510,1737993051857,-160.1501,0.00022308,7]
[350611512,1737993051866,-314.55719495,0.00022356,2]
[350611514,1737993051876,-481.22336332,0.00022368,2]
[350611516,1737993051886,-249.0,0.00022394,3]
[350611518,1737993051895,-10335.22751205,0.00022401,2]
[350611520,1737993051905,-481.22336332,0.00022446,2]
[350611522,1737993051915,-188.0,0.000225,2]
[350611524,1737993051924,-300.0,0.000225,10]
[350611526,1737993051934,-150.0,0.000225,5]
[350611528,1737993051944,-155.603611,0.000225,30]
[350611531,1737993051955,-153.06,0.000225,31]
[350611533,1737993051965,-153.06,0.000225,31]
[350611535,1737993051975,-153.06,0.000225,31]
[350611537,1737993051985,-153.06,0.000225,31]
[350611539,1737993051995,-153.06,0.000225,31]
[350611541,1737993052006,-153.06,0.000225,31]
[350611543,1737993052015,-153.06,0.000225,31]
[350611545,1737993052025,-151.52159448,0.00022502,2]
[350611547,1737993052035,-481.22336332,0.00022524,2]
[350611549,1737993052045,-151.0,0.00022572,2]
[350611551,1737993052055,-500.0,0.00022573,2]
[350611553,1737993052064,-151.0,0.00022578,7]
[350611555,1737993052073,-151.0,0.00022578,7]
[350611557,1737993052083,-183.372696,0.00022578,7]
[350611559,1737993052093,-151.0,0.00022578,7]
[350611561,1737993052104,-151.0,0.00022578,7]
[350611563,1737993052114,-151.0,0.00022578,7]
[350611565,1737993052123,-151.0,0.00022578,7]
[350611567,1737993052133,-151.0,0.00022578,7]
[350611569,1737993052142,-151.0,0.00022578,7]
[350611571,1737993052151,-151.0,0.00022578,7]
[350611573,1737993052162,-151.0,0.00022578,7]
[350611575,1737993052172,-201.720458,0.00022578,7]
[350611577,1737993052182,-151.0,0.00022578,7]
[350611579,1737993052192,-151.0,0.00022578,7]
[350611581,1737993052202,-151.0,0.00022578,7]
[350611583,1737993052211,-160.0,0.0002258,7]
[350611585,1737993052221,-257.715593,0.00022585,7]
[350611587,1737993052231,-257.715593,0.00022585,7]
[350611589,1737993052241,-257.715587,0.00022585,7]
[350611591,1737993052251,-273.785,0.00022585,7]
[350611593,1737993052260,-273.785,0.00022585,7]
[350611595,1737993052270,-273.785,0.00022585,7]
[350611597,1737993052280,-273.785,0.00022585,7]
[350611599,1737993052289,-273.785,0.00022585,7]
[350611601,1737993052299,-273.785,0.00022585,7]
[350611603,1737993052310,-273.785,0.00022585,7]
[350611605,1737993052319,-273.785,0.00022585,7]
[350611607,1737993052328,-273.785,0.00022585,7]
[350611609,1737993052338,-273.785,0.00022585,7]
[350611611,1737993052347,-273.785,0.00022585,7]
[350611613,1737993052357,-273.785,0.00022585,7]
[350611615,1737993052366,-273.785,0.00022585,7]
[350611617,1737993052376,-273.785,0.00022585,7]
[350611625,1737993052442,-273.785,0.00022585,7]
[350611627,1737993052452,-273.785,0.00022585,7]
[350611628,1737993052461,-273.785,0.00022585,7]
[350611629,1737993052471,-273.785,0.00022585,7]
[350611630,1737993052480,-273.785,0.00022585,7]
[350611631,1737993052489,-273.785,0.00022585,7]
[350611632,1737993052500,-151.0,0.00022585,7]
[350611633,1737993052510,-500.0,0.00022585,3]
[350611634,1737993052520,-150.08,0.00022585,14]
[350611635,1737993052530,-249.4,0.00022585,14]
[350611636,1737993052539,-6183.1672176,0.0002259,2]
[350611637,1737993052548,-4313.92,0.000226,2]
[350611638,1737993052558,-151.0,0.00022602,7]
[350611639,1737993052567,-151.0,0.00022602,7]
[350611640,1737993052577,-151.0,0.00022602,7]
[350611642,1737993052586,-151.0,0.00022602,7]
[350611644,1737993052596,-151.0,0.00022602,7]
[350611646,1737993052606,-151.0,0.00022602,7]
[350611648,1737993052618,-151.0,0.00022602,7]
[350611650,1737993052628,-151.0,0.00022602,7]
[350611652,1737993052637,-171.873718,0.00022602,7]
[350611654,1737993052647,-151.0,0.00022602,7]
[350611656,1737993052658,-151.0,0.00022602,7]
[350611658,1737993052667,-151.0,0.00022602,7]
[350611660,1737993052677,-151.0,0.00022602,7]
[350611662,1737993052688,-151.0,0.00022602,7]
[350611664,1737993052699,-151.0,0.00022602,7]
[350611666,1737993052709,-151.0,0.00022602,7]
[350611668,1737993052719,-151.0,0.00022602,7]
[350611670,1737993052728,-242.107752,0.00022602,7]